fUSD/lending_fUSD_20250206
["ID","MTS","AMOUNT","RATE_DAILY","PERIOD"]
[352013986,1738879839921,-189.21762934,0.00017499,2]
[352013987,1738879839934,-310.78237066,0.00017499,2]
[352013988,1738879839944,-18.75232964,0.00017499,2]
[352013989,1738879839962,-481.24767036,0.00017499,2]
[352013990,1738879839972,-500.0,0.00017499,2]
[352013991,1738879839982,-583.91,0.00017499,2]
[352013992,1738879839991,-972.43,0.00017499,2]
[352013993,1738879840001,-500.0,0.00017499,2]
[352013994,1738879840010,-688.5,0.00017499,2]
[352013995,1738879840020,-500.0,0.00017499,2]
[352013996,1738879840030,-500.0,0.00017499,2]
[352013997,1738879840040,-500.0,0.00017499,2]
[352013998,1738879840050,-500.0,0.00017499,2]
[352013999,1738879840060,-885.9,0.00017499,2]
[352014000,1738879840069,-500.0,0.00017499,2]
[352014002,1738879840079,-1581.22,0.00017499,2]
[352014003,1738879840089,-500.0,0.00017499,2]
[352014004,1738879840099,-500.0,0.00017499,2]
[352014005,1738879840108,-500.0,0.00017499,2]
[352014007,1738879840118,-1000.0,0.00017499,2]
[352014008,1738879840128,-500.0,0.00017499,2]
[352014009,1738879840137,-568.88,0.00017499,2]
[352014010,1738879840147,-493.06680977,0.00017499,2]
[352014011,1738879840156,-500.0,0.00017499,2]
[352014012,1738879840166,-856.45,0.00017499,2]
[352014013,1738879840175,-500.0,0.00017499,2]
[352014014,1738879840184,-500.0,0.00017499,2]
[352014015,1738879840193,-500.0,0.00017499,2]
[352014016,1738879840203,-500.0,0.00017499,2]
[352014017,1738879840213,-500.0,0.00017499,2]
[352014018,1738879840222,-500.0,0.00017499,2]
[352014019,1738879840231,-500.0,0.00017499,2]
[352014020,1738879840241,-790.67,0.00017499,2]
[352014022,1738879840251,-500.0,0.00017499,2]
[352014023,1738879840260,-500.0,0.00017499,2]
[352014024,1738879840270,-500.0,0.00017499,2]
[352014025,1738879840279,-500.0,0.00017499,2]
[352014026,1738879840288,-500.0,0.00017499,2]
[352014027,1738879840297,-795.83,0.00017499,2]
[352014028,1738879840307,-500.0,0.00017499,2]
[352014029,1738879840316,-500.0,0.00017499,2]
[352014030,1738879840325,-500.0,0.00017499,2]
[352014031,1738879840335,-500.0,0.00017499,2]
[352014032,1738879840344,-1671.81,0.00017499,2]
[352014033,1738879840354,-550.94,0.00017499,2]
[352014034,1738879840363,-500.0,0.00017499,2]
[352014035,1738879840373,-500.0,0.00017499,2]
[352014036,1738879840384,-522.5,0.00017499,2]
[352014037,1738879840393,-500.0,0.00017499,2]
[352014038,1738879840402,-500.0,0.00017499,2]
[352014039,1738879840411,-500.0,0.00017499,2]
[352014040,1738879840420,-500.0,0.00017499,2]
[352014041,1738879840429,-500.0,0.00017499,2]
[352014042,1738879840439,-500.0,0.00017499,2]
[352014043,1738879840448,-574.39,0.00017499,2]
[352014044,1738879840458,-576.99,0.00017499,2]
[352014045,1738879840468,-500.0,0.00017499,2]
[352014046,1738879840478,-578.98801687,0.00017499,2]
[352014047,1738879840488,-661.55,0.00017499,2]
[352014048,1738879840497,-672.05,0.00017499,2]
[352014049,1738879840507,-620.71,0.00017499,2]
[352014050,1738879840516,-674.79,0.00017499,2]
[352014051,1738879840525,-1081.5,0.00017499,2]
[352014052,1738879840535,-500.0,0.00017499,2]
[352014053,1738879840544,-500.0,0.00017499,2]
[352014054,1738879840554,-500.0,0.00017499,2]
[352014055,1738879840563,-500.0,0.00017499,2]
[352014056,1738879840573,-500.0,0.00017499,2]
[352014057,1738879840582,-500.0,0.00017499,2]
[352014058,1738879840591,-500.0,0.00017499,2]
[352014059,1738879840600,-500.0,0.00017499,2]
[352014060,1738879840610,-500.0,0.00017499,2]
[352014061,1738879840619,-500.0,0.00017499,2]
[352014062,1738879840628,-500.0,0.00017499,2]
[352014063,1738879840637,-500.0,0.00017499,2]
[352014064,1738879840646,-531.53,0.00017499,2]
[352014065,1738879840656,-500.0,0.00017499,2]
[352014066,1738879840665,-500.0,0.00017499,2]
[352014067,1738879840675,-561.48,0.00017499,2]
[352014068,1738879840684,-500.0,0.00017499,2]
[352014069,1738879840693,-663.62,0.00017499,2]
[352014070,1738879840703,-675.23,0.00017499,2]
[352014071,1738879840712,-248.75,0.00017499,2]
[352014072,1738879840722,-500.0,0.00017499,2]
[352014073,1738879840732,-500.0,0.00017499,2]
[352014074,1738879840743,-500.0,0.00017499,2]
[352014075,1738879840752,-435.067503,0.00017499,2]
[352014076,1738879840767,-64.932497,0.00017499,2]
[352014077,1738879840776,-469.56,0.00017499,2]
[352014078,1738879840785,-500.0,0.00017499,2]
[352014079,1738879840794,-1044.87,0.00017499,2]
[352014081,1738879840803,-500.0,0.00017499,2]
[352014083,1738879840812,-268.01599541,0.00017499,2]
[352014087,1738879840843,494.0812,8.851e-05,2]
[352014090,1738879840856,-262.85400459,0.00017499,2]
[352014092,1738879840865,-657.01,0.00017499,2]
[352014094,1738879840875,-49.96099541,0.00017499,2]
[352014096,1738879840886,-450.03900459,0.00017499,2]
[352014098,1738879840895,-73.61099541,0.00017499,2]
[352014100,1738879840906,-426.38900459,0.00017499,2]
[352014102,1738879840915,-500.0,0.00017499,2]
[352014104,1738879840925,-500.0,0.00017499,2]
[352014106,1738879840934,-699.67,0.00017499,2]
[352014108,1738879840943,-500.0,0.00017499,2]
[352014110,1738879840953,-73.35185324,0.00017499,2]
[352014112,1738879840965,-426.64814676,0.00017499,2]
[352014114,1738879840976,-500.0,0.00017499,2]
[352014116,1738879840985,-500.0,0.00017499,2]
[352014118,1738879840995,-583.81,0.00017499,2]
[352014120,1738879841004,-500.0,0.00017499,2]
[352014122,1738879841013,-379.79197957,0.00017499,2]
[352014124,1738879841024,-120.20802043,0.00017499,2]
[352014126,1738879841034,-500.0,0.00017499,2]
[352014128,1738879841043,-937.97,0.00017499,2]
[352014130,1738879841052,-500.0,0.00017499,2]
[352014132,1738879841062,-500.0,0.00017499,2]
[352014134,1738879841071,-500.0,0.00017499,2]
[352014135,1738879841080,-218.72324769,0.00017499,2]
[352014136,1738879841091,-281.27675231,0.00017499,2]
[352014137,1738879841100,-234.10713447,0.00017499,2]
[352014138,1738879841111,-77.09286553,0.00017499,2]
[352014139,1738879841120,-500.0,0.00017499,2]
[352014140,1738879841130,-500.0,0.00017499,2]
[352014141,1738879841139,-286.25,0.00017499,2]
[352014142,1738879841148,-500.0,0.00017499,2]
[352014143,1738879841157,-550.56,0.00017499,2]
[352014144,1738879841167,-510.9,0.00017499,2]
[352014145,1738879841176,-104.42870594,0.00017499,2]
[352014146,1738879841187,-395.57129406,0.00017499,2]
[352014147,1738879841197,-434.08404649,0.00017499,2]
[352014148,1738879841520,-65.91595351,0.00017499,2]
[352014149,1738879841529,-266.63777074,0.00017499,2]
[352014150,1738879841539,-500.0,0.00017499,2]
[352014151,1738879841549,-500.0,0.00017499,2]
[352014152,1738879841558,-1191.88,0.00017499,2]
[352014153,1738879841567,-500.0,0.00017499,2]
[352014154,1738879841576,-500.0,0.00017499,2]
[352014155,1738879841586,-500.0,0.00017499,2]
[352014156,1738879841595,-500.0,0.00017499,2]
[352014157,1738879841605,-447.31410534,0.00017499,2]
[352014158,1738879841616,-52.68589466,0.00017499,2]
[352014159,1738879841626,-500.0,0.00017499,2]
[352014160,1738879841635,-500.0,0.00017499,2]
[352014161,1738879841644,-500.0,0.00017499,2]
[352014162,1738879841653,-500.0,0.00017499,2]
[352014163,1738879841662,-491.79707503,0.00017499,2]
[352014164,1738879841672,-514.1,0.00017499,2]
[352014165,1738879841681,-500.0,0.00017499,2]
[352014166,1738879841691,-500.0,0.00017499,2]
[352014167,1738879841701,-616.4,0.00017499,2]
[352014168,1738879841711,-500.0,0.00017499,2]
[352014169,1738879841720,-500.0,0.00017499,2]
[352014170,1738879841730,-500.0,0.00017499,2]
[352014171,1738879841739,-809.44,0.00017499,2]
[352014172,1738879841751,-500.0,0.00017499,2]
[352014173,1738879841760,-500.0,0.00017499,2]
[352014174,1738879841770,-500.0,0.00017499,2]
[352014175,1738879841779,-500.0,0.00017499,2]
[352014176,1738879841789,-513.01,0.00017499,2]
[352014177,1738879841799,-500.0,0.00017499,2]
[352014178,1738879841808,-500.0,0.00017499,2]
[352014179,1738879841817,-295.48,0.00017499,2]
[352014180,1738879841827,-500.0,0.00017499,2]
[352014181,1738879841836,-500.0,0.00017499,2]
[352014182,1738879841845,-516.18,0.00017499,2]
[352014183,1738879841854,-500.0,0.00017499,2]
[352014184,1738879841863,-531.81,0.00017499,2]
[352014185,1738879841871,-500.0,0.00017499,2]
[352014186,1738879841881,-500.0,0.00017499,2]
[352014187,1738879841890,-500.0,0.00017499,2]
[352014188,1738879841899,-500.0,0.00017499,2]
[352014189,1738879841908,-500.0,0.00017499,2]
[352014190,1738879841918,-584.16,0.00017499,2]
[352014191,1738879841927,-500.0,0.00017499,2]
[352014192,1738879841936,-500.0,0.00017499,2]
[352014193,1738879841946,-500.0,0.00017499,2]
[352014194,1738879841955,-500.0,0.00017499,2]
[352014195,1738879841964,-500.0,0.00017499,2]
[352014196,1738879841973,-500.0,0.00017499,2]
[352014197,1738879841983,-500.0,0.00017499,2]
[352014198,1738879841992,-980.04,0.00017499,2]
[352014199,1738879842002,-5129.14920072,0.000175,18]
[352014200,1738879842013,-997.00322,0.000175,18]
[352014201,1738879842189,-474.63694303,0.000175,18]
[352014202,1738879842207,-406195.49931291,0.000175,18]
[352014203,1738879842219,-13201.90983459,0.000175,18]
[352014204,1738879842231,-494.49,0.000175,18]
[352014205,1738879842243,-7901.67657273,0.000175,18]
[352014206,1738879842432,-986.96348217,0.000175,18]
[352014207,1738879842443,-48500.0,0.000175,18]
[352014208,1738879842454,-1336.87353998,0.000175,18]
[352014209,1738879842470,-6014.0,0.000175,18]
[352014210,1738879842481,-5663.00549854,0.000175,18]
[352014230,1738879843401,-616.0342625,0.00017499,2]
[352014231,1738879843410,-1327.01261353,0.000175,18]
[352014232,1738879843422,-105270.17999994,0.000175,18]
[352014233,1738879843496,-2523.86000002,0.000175,18]
[352014234,1738879843507,-3468.27493008,0.000175,18]
[352014235,1738879843520,-34592.82231714,0.000175,18]
[352014236,1738879843677,-26769.08249561,0.000175,18]
[352014237,1738879843689,-1997.745936,0.000175,18]
[352014238,1738879843700,-987.01,0.000175,18]
[352014239,1738879843712,-5338.96326073,0.000175,18]
[352014240,1738879843723,-6043.54681717,0.000175,18]
[352014241,1738879843735,-1163.764995,0.000175,18]
[352014242,1738879843750,-383.20020393,0.000175,18]
[352014257,1738879846397,-335.30570427,0.00017498,2]
[352014258,1738879846504,-164.69429573,0.00017498,2]
[352014259,1738879846514,-500.0,0.00017499,2]
[352014260,1738879846524,-18769.75270132,0.000175,18]
[352014261,1738879846535,-1481.54951086,0.000175,18]
[352014262,1738879846547,-1208.0,0.000175,18]
[352014263,1738879846558,-159921.40034355,0.000175,18]
[352014264,1738879846574,-449.5557128,0.000175,18]
[352014265,1738879846636,-692.17038355,0.000175,18]
[352014266,1738879846673,-18366.55274691,0.000175,18]
[352014267,1738879846687,-2866.08229076,0.000175,18]
[352014268,1738879846699,-3853.27221049,0.000175,18]
[352014495,1738879943558,1836.7671,8.973e-05,2]
[352014496,1738879954465,83226.3376,8.836e-05,2]
[352014497,1738880054486,2425.18107,0.0002,120]
[352014498,1738880642432,-150.0,0.00014608,2]
[352014499,1738880667320,-151.18,0.00010137,2]
[352014500,1738880708285,250833.59198613,0.0001,2]
[352014502,1738880822077,20609.4071309,9.37e-05,2]
[352014535,1738880878582,170600.22329014,0.0001,2]
[352014536,1738880878605,932415.78561403,0.0001,2]
[352014541,1738881006792,-150.0,0.00014608,2]
[352014574,1738881031717,-231.82,0.00014608,2]
[352014576,1738881031727,-150.0,0.00014784,2]
[352014579,1738881031736,-259.91035696,0.00015312,2]
[352014593,1738881032037,-8.99694769,0.00015312,2]
[352014594,1738881032047,-847.53757057,0.00015396,2]
[352014595,1738881032056,-500.0,0.00015412,2]
[352014596,1738881032065,-1000.0,0.00015412,2]
[352014597,1738881032074,-374.22,0.00015412,2]
[352014598,1738881032083,-156.55,0.00015844,2]
[352014599,1738881032093,-2501.69,0.00015847,2]
[352014600,1738881032104,-150.0,0.00016069,2]
[352014601,1738881032114,-150.0,0.00016069,2]
[352014602,1738881032124,-170.44,0.00016239,2]
[352014603,1738881032133,-777.2,0.00016284,2]
[352014604,1738881032142,-1000.0,0.00016284,2]
[352014605,1738881032151,-157.39,0.00016304,2]
[352014606,1738881032160,-157.39,0.00016312,2]
[352014607,1738881032170,-157.39,0.0001632,2]
[352014608,1738881032179,-157.39,0.00016328,2]
[352014609,1738881032188,-157.39,0.00016337,2]
[352014610,1738881032198,-157.39,0.00016345,2]
[352014611,1738881032207,-157.39,0.00016353,2]
[352014612,1738881032216,-1500.0,0.00016354,2]
[352014613,1738881032225,-966.4893333,0.00016356,2]
[352014614,1738881032234,-157.39,0.00016361,2]
[352014615,1738881032243,-157.39,0.00016369,2]
[352014616,1738881032251,-157.39,0.00016377,2]
[352014617,1738881032259,-157.39,0.00016386,2]
[352014618,1738881032269,-405.0,0.00016424,2]
[352014619,1738881032278,-167.43,0.00016424,2]
[352014620,1738881032288,-200.0,0.000165,6]
[352014621,1738881032297,-727.87,0.00016521,2]
[352014622,1738881032306,-154.6,0.00016561,2]
[352014623,1738881032315,-500.0,0.000166,6]
[352014624,1738881032325,-379.11,0.00016658,30]
[352014625,1738881032336,-800.0,0.000167,6]
[352014626,1738881032345,-500.0,0.00016782,2]
[352014627,1738881032354,-1000.0,0.00016782,2]
[352014629,1738881032363,-1000.0,0.000168,6]
[352014630,1738881032373,-448.05124408,0.00016818,2]
[352014631,1738881032382,-531.82,0.00016872,2]
[352014632,1738881032391,-1300.0,0.000169,6]
[352014633,1738881032400,-2875.57849261,0.00016952,2]
[352014634,1738881032409,-18072.54828934,0.00017005,2]
[352014635,1738881032419,-431.53194145,0.0001712,2]
[352014636,1738881032428,-2023.0,0.00017214,2]
[352014637,1738881032437,-410.96,0.00017265,2]
[352014638,1738881032446,-150.0,0.00017265,2]
[352014640,1738881032457,-294.31,0.00017265,2]
[352014641,1738881032466,-150.0,0.00017265,2]
[352014642,1738881032475,-300.0,0.00017265,2]
[352014643,1738881032484,-150.0,0.00017265,2]
[352014644,1738881032494,-150.0,0.00017265,2]
[352014645,1738881032504,-692.21682262,0.00017398,2]
[352014646,1738881032514,-161.32982173,0.00017398,2]
[352014647,1738881032522,-9218.77649588,0.00017398,2]
[352014648,1738881032530,-417.24390143,0.00017398,2]
[352014649,1738881032540,-879.7453476,0.000174,2]
[352014650,1738881032549,-531.52260408,0.000174,2]
[352014651,1738881032559,-18666.20132613,0.000174,2]
[352014652,1738881032568,-207.72485393,0.000174,2]
[352014653,1738881032577,-175.82611446,0.000174,3]
[352014654,1738881032587,-1363.5480254,0.000174,2]
[352014655,1738881032596,-307.391711,0.000174,2]
[352014656,1738881032605,-1032.364,0.00017452,2]
[352014657,1738881032614,-692.21682258,0.00017454,2]
[352014658,1738881032623,-180.54,0.00017488,2]
[352014659,1738881032632,-180.54,0.00017488,2]
[352014660,1738881032641,-180.54,0.00017488,2]
[352014661,1738881032651,-180.54,0.00017488,2]
[352014662,1738881032660,-180.54,0.00017488,2]
[352014663,1738881032669,-180.54,0.00017488,2]
[352014664,1738881032679,-180.54,0.00017488,2]
[352014665,1738881032688,-180.54,0.00017488,2]
[352014666,1738881032696,-180.54,0.00017488,2]
[352014667,1738881032706,-180.54,0.00017488,2]
[352014668,1738881032715,-180.54,0.00017488,2]
[352014669,1738881032725,-180.54,0.00017488,2]
[352014670,1738881032734,-180.54,0.00017488,2]
[352014671,1738881032744,-180.54,0.00017488,2]
[352014672,1738881032753,-180.54,0.00017488,2]
[352014673,1738881032763,-180.54,0.00017488,2]
[352014674,1738881032772,-180.54,0.00017488,2]
[352014675,1738881032781,-180.54,0.00017488,2]
[352014676,1738881032791,-180.54,0.00017488,2]
[352014677,1738881032800,-180.54,0.00017488,2]
[352014678,1738881032809,-180.54,0.00017488,2]
[352014679,1738881032819,-180.54,0.00017488,2]
[352014680,1738881032828,-180.54,0.00017488,2]
[352014681,1738881032838,-180.54,0.00017488,2]
[352014682,1738881032847,-180.54,0.00017488,2]
[352014683,1738881032856,-180.54,0.00017488,2]
[352014684,1738881032865,-180.54,0.00017488,2]
[352014685,1738881032875,-180.54,0.00017488,2]
[352014686,1738881032883,-180.54,0.00017488,2]
[352014687,1738881032891,-180.54,0.00017488,2]
[352014688,1738881032901,-180.54,0.00017488,2]
[352014689,1738881032910,-180.54,0.00017488,2]
[352014690,1738881032919,-180.54,0.00017488,2]
[352014691,1738881032928,-180.54,0.00017488,2]
[352014692,1738881032938,-180.54,0.00017488,2]
[352014693,1738881032947,-180.54,0.00017488,2]
[352014694,1738881032956,-180.54,0.00017488,2]
[352014695,1738881032967,-180.54,0.00017488,2]
[352014696,1738881032976,-190.9344981,0.00017488,2]
[352014697,1738881032986,-180.54,0.00017488,2]
[352014698,1738881032995,-180.54,0.00017488,2]
[352014699,1738881033005,-180.54,0.00017488,2]
[352014700,1738881033014,-180.54,0.00017488,2]
[352014701,1738881033023,-180.54,0.00017488,2]
[352014702,1738881033033,-180.54,0.00017488,2]
[352014703,1738881033042,-180.54,0.00017488,2]
[352014704,1738881033051,-180.54,0.00017488,2]
[352014705,1738881033061,-180.54,0.00017488,2]
[352014706,1738881033072,-500.0,0.00017496,2]
[352014707,1738881033083,-500.0,0.00017496,2]
[352014708,1738881033098,-500.0,0.00017496,2]
[352014709,1738881033114,-500.0,0.00017496,2]
[352014710,1738881033126,-500.0,0.00017496,2]
[352014711,1738881033137,-500.0,0.00017496,2]
[352014712,1738881033149,-500.0,0.00017496,2]
[352014713,1738881033161,-500.0,0.00017496,2]
[352014714,1738881033173,-500.0,0.00017496,2]
[352014715,1738881033186,-500.0,0.00017496,2]
[352014716,1738881033199,-159.559,0.00017497,2]
[352014717,1738881033211,-533.0,0.00017497,2]
[352014718,1738881033224,-788.98,0.00017497,2]
[352014719,1738881033236,-500.0,0.00017497,2]
[352014720,1738881033248,-500.0,0.00017497,2]
[352014721,1738881033259,-601.73,0.00017497,2]
[352014722,1738881033270,-500.0,0.00017497,2]
[352014723,1738881033281,-751.38,0.00017497,2]
[352014724,1738881033293,-500.0,0.00017497,2]
[352014725,1738881033305,-731.09,0.00017497,2]
[352014726,1738881033317,-500.0,0.00017497,2]
[352014727,1738881033328,-500.0,0.00017497,2]
[352014728,1738881033341,-892.18,0.00017497,2]
[352014729,1738881033353,-500.0,0.00017497,2]
[352014730,1738881033365,-2094.67,0.00017497,2]
[352014731,1738881033377,-500.0,0.00017497,2]
[352014732,1738881033389,-706.29,0.00017497,2]
[352014733,1738881033401,-765.13,0.00017497,2]
[352014734,1738881033412,-579.9,0.00017497,2]
[352014735,1738881033426,-665.49,0.00017497,2]
[352014736,1738881033438,-500.0,0.00017497,2]
[352014737,1738881033450,-500.0,0.00017497,2]
[352014738,1738881033462,-500.0,0.00017497,2]
[352014739,1738881033474,-323.29150861,0.00017497,2]
[352014740,1738881033490,-176.70849139,0.00017497,2]
[352014741,1738881033502,-500.0,0.00017497,2]
[352014742,1738881033514,-127.79937051,0.00017497,2]
[352014743,1738881033536,-372.20062949,0.00017497,2]
[352014744,1738881033547,-523.08,0.00017497,2]
[352014745,1738881033559,-883.19,0.00017497,2]
[352014746,1738881033570,-501.68629352,0.00017497,2]
[352014747,1738881033580,-853.92,0.00017497,2]
[352014748,1738881033590,-834.17,0.00017497,2]
[352014749,1738881033601,-696.25,0.00017497,2]
[352014750,1738881033611,-500.0,0.00017497,2]
[352014751,1738881033623,-725.58,0.00017497,2]
[352014752,1738881033636,-1277.36,0.00017497,2]
[352014753,1738881033646,-500.0,0.00017497,2]
[352014754,1738881033656,-500.0,0.00017497,2]
[352014755,1738881033665,-500.0,0.00017497,2]
[352014756,1738881033675,-526.7,0.00017497,2]
[352014757,1738881033686,-500.0,0.00017497,2]
[352014758,1738881033697,-500.0,0.00017497,2]
[352014759,1738881033709,-500.0,0.00017497,2]
[352014760,1738881033721,-500.0,0.00017497,2]
[352014761,1738881033731,-500.0,0.00017497,2]
[352014762,1738881033742,-500.0,0.00017497,2]
[352014763,1738881033752,-1384.88,0.00017497,2]
[352014764,1738881033763,-500.0,0.00017497,2]
[352014765,1738881033776,-500.0,0.00017497,2]
[352014766,1738881033786,-773.31,0.00017497,2]
[352014767,1738881033797,-500.0,0.00017497,2]
[352014768,1738881033808,-500.0,0.00017497,2]
[352014769,1738881033820,-155.003976,0.00017497,2]
[352014770,1738881033831,-217.61102313,0.00017497,2]
[352014771,1738881033843,-3415.94330197,0.00017497,2]
[352014772,1738881033854,-317088.73068081,0.00017497,2]
[352014773,1738881033868,-1337.0,0.00017497,2]
[352014774,1738881033881,-4381.89421095,0.00017497,2]
[352014775,1738881033895,-2328.69585001,0.00017497,2]
[352014776,1738881033908,-628.9464439,0.00017497,2]
[352014777,1738881033926,-246912.29055403,0.00017497,2]
[352014778,1738881033983,-24657.37473884,0.00017497,2]
[352014779,1738881033996,-4931.61992374,0.00017497,2]
[352014780,1738881034010,-21324.844559,0.00017497,2]
[352014787,1738881037851,-1028.0,0.00017214,2]
[352014788,1738881037861,-500.0,0.00017496,2]
[352014789,1738881037870,-500.0,0.00017496,2]
[352014790,1738881037879,-500.0,0.00017496,2]
[352014791,1738881037888,-500.0,0.00017496,2]
[352014792,1738881037901,-500.0,0.00017497,2]
[352014794,1738881037910,-500.0,0.00017497,2]
[352014796,1738881037919,-500.0,0.00017497,2]
[352014798,1738881037928,-43722.0,0.00017497,2]
[352014802,1738881037952,-500.0,0.00017496,2]
[352014804,1738881037962,-77.20162559,0.00017497,2]
[352014806,1738881037973,-504.96265153,0.00017497,2]
[352014808,1738881037984,-1031.6,0.00017497,2]
[352014810,1738881037995,-6320.61948,0.00017497,2]
[352014812,1738881038006,-1233.42756601,0.00017497,2]
[352014816,1738881038031,-2714.0786,0.00017497,2]
[352014818,1738881038042,-973.17911874,0.00017497,2]
[352014823,1738881038057,-4815.73476534,0.00017497,2]
[352014826,1738881038067,-836.85840195,0.00017497,2]
[352014829,1738881038078,-4813.47687881,0.00017497,2]
[352014998,1738881039593,-151.217,0.00017214,2]
[352015000,1738881039603,-348.783,0.00017496,2]
[352015002,1738881039615,-151.217,0.00017496,2]
[352015004,1738881039624,-500.0,0.00017496,2]
[352015006,1738881039634,-780.31,0.00017497,2]
[352015008,1738881039643,-2568.473,0.00017497,2]
[352015011,1738881039659,-5375.7588598,0.00017497,2]
[352015013,1738881039671,-96600.0,0.00017497,2]
[352015016,1738881039687,-295.85300019,0.00017497,2]
[352015018,1738881039699,-2038.88082548,0.00017497,2]
[352015020,1738881039711,-410.7506557,0.00017497,2]
[352015022,1738881039723,-254.98887991,0.00017497,2]
[352015026,1738881039747,-400.2386,0.00017497,2]
[352015034,1738881039818,-482.16168,0.00017497,2]
[352015308,1738881042806,-380.87,0.00017496,2]
[352015310,1738881042816,-500.0,0.00017496,2]
[352015312,1738881042826,-500.0,0.00017496,2]
[352015314,1738881042835,-1720728.29845892,0.00017497,2]
[352015590,1738881045822,-3911.0,0.00017214,2]
[352015592,1738881045832,-500.0,0.00017496,2]
[352015594,1738881045842,-500.0,0.00017496,2]
[352015596,1738881045852,-500.0,0.00017496,2]
[352015598,1738881045861,-500.0,0.00017496,2]
[352015600,1738881045870,-500.0,0.00017497,2]
[352015602,1738881045880,-260535.52384,0.00017497,2]
[352015604,1738881045889,-250.57824789,0.00017497,2]
[352015606,1738881045899,-500.0,0.00017497,2]
[352015608,1738881045908,-500.0,0.00017497,2]
[352015610,1738881045918,-200.09273841,0.00017497,2]
[352015612,1738881045928,-500.0,0.00017497,2]
[352015614,1738881045938,-363.59566614,0.00017497,2]
[352015616,1738881045948,-500.0,0.00017497,2]
[352015618,1738881045957,-500.0,0.00017497,2]
[352015620,1738881045967,-500.0,0.00017497,2]
[352015623,1738881045979,-500.0,0.00017497,2]
[352015625,1738881045988,-500.0,0.00017497,2]
[352015626,1738881045998,-332.10477601,0.00017497,2]
[352015629,1738881046008,-250.0,0.00017497,2]
[352015631,1738881046018,-500.0,0.00017497,2]
[352015633,1738881046028,-335.76,0.00017497,2]
[352015635,1738881046038,-500.0,0.00017498,2]
[352015636,1738881046047,-500.0,0.00017498,2]
[352015639,1738881046057,-500.0,0.00017498,2]
[352015641,1738881046068,-500.0,0.00017498,2]
[352015643,1738881046078,-500.0,0.00017498,2]
[352015645,1738881046090,-500.0,0.00017498,2]
[352015647,1738881046101,-500.0,0.00017498,2]
[352015649,1738881046114,-500.0,0.00017498,2]
[352015651,1738881046125,-500.0,0.00017498,2]
[352015653,1738881046135,-500.0,0.00017498,2]
[352015655,1738881046145,-500.0,0.00017498,2]
[352015657,1738881046155,-500.0,0.00017498,2]
[352015659,1738881046165,-537.63,0.00017498,2]
[352015661,1738881046175,-500.0,0.00017498,2]
[352015663,1738881046186,-500.0,0.00017498,2]
[352015665,1738881046195,-500.0,0.00017498,2]
[352015667,1738881046207,-617.52093266,0.00017498,2]
[352015669,1738881046216,-300.0,0.00017498,2]
[352015671,1738881046228,-500.0,0.00017498,2]
[352015673,1738881046237,-500.0,0.00017498,2]
[352015675,1738881046247,-500.0,0.00017498,2]
[352015677,1738881046257,-500.0,0.00017498,2]
[352015679,1738881046267,-500.0,0.00017498,2]